2CCN - Level 2 Cost Centre Name,,9CCN - Level 9 Cost Centre Name,9CCC - Level 9 Cost Centre Code,9AN - Level 9 Account Name,9AC - Level 9 Account Code,Date posted,Date of transaction,Merchant Name,Merchant City,Merchant State,Merchant Zip Code,Originating Account Name,Originating Account Number,MCC/SIC Code,MCC Description,Original Amount,Currency,Conversion Rate,Billed Amount,Debit Credit,Reference Number,Statement Cycle,Account Name
Gloucester City Council,23UE,Museum of Gloucester,MU002,Catering Provisions,3103,10/01/2018,09/01/2018,POUNDLAND LTD 1167,GLOUCESTER,,GL11XH,REDACTED,556*********2362,5310,DISCOUNT STORES,2,Pound Sterling (826),1.000000000,2,Debit,85481478010011208624363,02/02/2018,GLOUCESTER CC
Gloucester City Council,23UE,Gloucester Life Museum,MU005,Catering Provisions,3103,15/01/2018,12/01/2018,POUNDLAND LTD 1167,GLOUCESTER,,GL11XH,REDACTED,556*********2362,5310,DISCOUNT STORES,2,Pound Sterling (826),1.000000000,2,Debit,85481478013011875093790,02/02/2018,GLOUCESTER CC
Gloucester City Council,23UE,Museum of Gloucester,MU002,General Supplies/Materials,3025,15/01/2018,12/01/2018,J & E NEVITT,WORCESTER,GBR,WR1 3LR,REDACTED,556*********2362,5722,HOUSEHOLD APPLIANCE STORES,5.6,Pound Sterling (826),1.000000000,5.6,Debit,05272478013910002373234,02/02/2018,GLOUCESTER CC
Gloucester City Council,23UE,Museum of Gloucester,MU002,Catering Provisions,3103,15/01/2018,13/01/2018,ASDA SUPERSTORE,GLOUCESTER,GBR,GL1 1DS,REDACTED,556*********2362,5411,"GROCERY STORES, SUPERMARKETS",11.69,Pound Sterling (826),1.000000000,11.69,Debit,15377758014070605619470,02/02/2018,GLOUCESTER CC
Gloucester City Council,23UE,Museum of Gloucester,MU002,Catering Provisions,3103,17/01/2018,16/01/2018,TESCO STORES (6819),GLOUCESTER,GBR,GL1 1TP,REDACTED,556*********2362,5411,"GROCERY STORES, SUPERMARKETS",1.5,Pound Sterling (826),1.000000000,1.5,Debit,65377758017090312960084,02/02/2018,GLOUCESTER CC
Gloucester City Council,23UE,Museum of Gloucester,MU002,General Supplies/Materials,3025,17/01/2018,16/01/2018,AMAZON SVCS EU-UK AMAZ,AMAZON.CO.UK,LUX,,REDACTED,556*********2362,5942,BOOK STORES,-28.74,Pound Sterling (826),1.000000000,-28.74,Credit,85389248016802189573486,02/02/2018,GLOUCESTER CC
Gloucester City Council,23UE,Museum of Gloucester,MU002,Catering Provisions,3103,22/01/2018,19/01/2018,TESCO STORES 6819,GLOUCESTER,GBR,GL1 1TP,REDACTED,556*********2362,5411,"GROCERY STORES, SUPERMARKETS",2.18,Pound Sterling (826),1.000000000,2.18,Debit,65377758020020366323900,02/02/2018,GLOUCESTER CC
Gloucester City Council,23UE,Gloucester Life Museum,MU005,Catering Provisions,3103,22/01/2018,20/01/2018,ASDA SUPERSTORE,GLOUCESTER,GBR,GL1 1DS,REDACTED,556*********2362,5411,"GROCERY STORES, SUPERMARKETS",13.96,Pound Sterling (826),1.000000000,13.96,Debit,15377758021020610006784,02/02/2018,GLOUCESTER CC
Gloucester City Council,23UE,Museum of Gloucester,MU002,General Supplies/Materials,3025,29/01/2018,27/01/2018,THE ENTERTAINER,GLOUCESTER,GBR,GL1 1RX,REDACTED,556*********2362,5945,"HOBBY,TOY, AND GAME SHOPS",15,Pound Sterling (826),1.000000000,15,Debit,95425168028070570496235,02/02/2018,GLOUCESTER CC
Gloucester City Council,23UE,Museum of Gloucester,MU002,Catering Provisions,3103,29/01/2018,27/01/2018,ASDA SUPERSTORE,GLOUCESTER,GBR,GL1 1DS,REDACTED,556*********2362,5411,"GROCERY STORES, SUPERMARKETS",13.06,Pound Sterling (826),1.000000000,13.06,Debit,15377758028070643842500,02/02/2018,GLOUCESTER CC
Gloucester City Council,23UE,Museum of Gloucester,MU002,General Supplies/Materials,3025,31/01/2018,30/01/2018,TOOLSTATION LTD,CC MOTO,GBR,TA6 4RN,REDACTED,556*********2362,5251,HARDWARE STORES,18.8,Pound Sterling (826),1.000000000,18.8,Debit,25425158031090092940000,02/02/2018,GLOUCESTER CC
Gloucester City Council,23UE,Museum of Gloucester,MU005,Catering Provisions,3103,31/01/2018,30/01/2018,ASDA SUPERSTORE,GLOUCESTER,GBR,GL1 1DS,REDACTED,556*********2362,5411,"GROCERY STORES, SUPERMARKETS",1.19,Pound Sterling (826),1.000000000,1.19,Debit,45377758031090210657828,02/02/2018,GLOUCESTER CC
Gloucester City Council,23UE,Museum of Gloucester,MU002,General Supplies/Materials,3025,01/02/2018,31/01/2018,AMAZON SVCS EU-UK AMAZ,AMAZON.CO.UK,LUX,,REDACTED,556*********2362,5942,BOOK STORES,39.99,Pound Sterling (826),1.000000000,39.99,Debit,85389248031804365284822,02/02/2018,GLOUCESTER CC
Gloucester City Council,23UE,Museum of Gloucester,MU002,Catering Provisions,3103,02/02/2018,01/02/2018,TESCO STORES (6819),GLOUCESTER,GBR,GL1 1TP,REDACTED,556*********2362,5411,"GROCERY STORES, SUPERMARKETS",1.5,Pound Sterling (826),1.000000000,1.5,Debit,65377758033010357068585,02/02/2018,GLOUCESTER CC
Gloucester City Council,23UE,Homelessness,HS002,B&B Payments,1303,09/01/2018,08/01/2018,TRAVELODGE GB0000,THAME,,,REDACTED,471*********7903,3615,TRAVELODGE,58.75,Pound Sterling (826),1.000000000,58.75,Debit,74830508008298156988854,02/02/2018,GLOUCESTER CC
Gloucester City Council,23UE,Homelessness,HS002,B&B Payments,1303,09/01/2018,08/01/2018,TRAVELODGE GB0000,THAME,,,REDACTED,471*********7903,3615,TRAVELODGE,153.5,Pound Sterling (826),1.000000000,153.5,Debit,74830508008298156988888,02/02/2018,GLOUCESTER CC
Gloucester City Council,23UE,Homelessness,HS002,B&B Payments,1303,09/01/2018,08/01/2018,TRAVELODGE GB0000,THAME,,,REDACTED,471*********7903,3615,TRAVELODGE,58.25,Pound Sterling (826),1.000000000,58.25,Debit,74830508008298156988920,02/02/2018,GLOUCESTER CC
Gloucester City Council,23UE,Managing Director & Directors,MT001,Public Transport - Staff,2402,02/02/2018,31/01/2018,TRAINLINE,03332 022 222,GBR,1445,REDACTED,556*********1418,4112,PASSENGER RAILWAYS,-81.9,Pound Sterling (826),1.000000000,-81.9,Credit,85130088032804291027189,02/02/2018,GLOUCESTER CC
Gloucester City Council,23UE,Countryside Unit,EP003,Professional Advice/Consultants fees,3952,15/01/2018,12/01/2018,PAYPAL *GLOS ORCH T,35314369001,GBR,TW91EH,REDACTED,556*********6734,8398,CHARITABLE AND SOCIAL SERVICE ORGANIZATIONS,25,Pound Sterling (826),1.000000000,25,Debit,85130088012801532910581,02/02/2018,GLOUCESTER CC
Gloucester City Council,23UE,Countryside Unit,EP003,Vehicle Repairs and Maintenance,2103,29/01/2018,26/01/2018,PAYPAL *ONECARPART,35314369001,GBR,TW91EH,REDACTED,556*********6734,5533,"AUTOMOTIVE PARTS, ACCESSORIES STORES",5.5,Pound Sterling (826),1.000000000,5.5,Debit,85130088026803041416500,02/02/2018,GLOUCESTER CC
Gloucester City Council,23UE,Countryside Unit,EP003,Vehicle Repairs and Maintenance,2103,29/01/2018,26/01/2018,PAYPAL *STAGEMOTORS,35314369001,GBR,TW91EH,REDACTED,556*********6734,5533,"AUTOMOTIVE PARTS, ACCESSORIES STORES",5.58,Pound Sterling (826),1.000000000,5.58,Debit,85130088026803041414620,02/02/2018,GLOUCESTER CC
Gloucester City Council,23UE,Guildhall Bar & Caf�,GH005,Catering Provisions,3103,04/01/2018,03/01/2018,ICELAND,GLOUCESTER,GBR,GL1 1SA,REDACTED,556*********1155,5411,"GROCERY STORES, SUPERMARKETS",3.96,Pound Sterling (826),1.000000000,3.96,Debit,25377758004000075865544,02/02/2018,GLOUCESTER CC
Gloucester City Council,23UE,Guildhall Bar & Caf�,GH005,Catering Provisions,3103,05/01/2018,04/01/2018,BOOKER LIMITED GLOUCES,GLOUCESTER,GBR,GL4 3RT,REDACTED,556*********1155,5811,CATERERS,76.42,Pound Sterling (826),1.000000000,76.42,Debit,55184228004890053680046,02/02/2018,GLOUCESTER CC
Gloucester City Council,23UE,Guildhall Bar & Caf�,GH005,Equipment and Furniture,3001,08/01/2018,05/01/2018,B & Q 1179,GLOUCESTER,,GL12SG,REDACTED,556*********1155,5211,LUMBER AND BUILDING MATERIALS STORES,19,Pound Sterling (826),1.000000000,19,Debit,85481478006010324558329,02/02/2018,GLOUCESTER CC
Gloucester City Council,23UE,Guildhall Bar & Caf�,GH005,Equipment and Furniture,3001,09/01/2018,08/01/2018,HOBBY CRAFT LTD,GLOUCESTER 22,,GL1 5SF,REDACTED,556*********1155,5970,"ARTIST SUPPLY STORES, CRAFT SHOPS",24.99,Pound Sterling (826),1.000000000,24.99,Debit,55504438008071238981112,02/02/2018,GLOUCESTER CC
Gloucester City Council,23UE,Guildhall Bar & Caf�,GH005,Equipment and Furniture,3001,09/01/2018,08/01/2018,DUNELM (SOFT FURNISHIN,GLOUCESTER,GBR,GL1 2TF,REDACTED,556*********1155,5714,"WINDOW COVERING, UPHOLSTERY AND DRAPERY STORES",30,Pound Sterling (826),1.000000000,30,Debit,55377758009030237777362,02/02/2018,GLOUCESTER CC
Gloucester City Council,23UE,Guildhall Bar & Caf�,GH005,Equipment and Furniture,3001,09/01/2018,08/01/2018,WH SMITH,GLOUCESTER,GBR,GL1 1NZ,REDACTED,556*********1155,5994,NEWS DEALERS AND NEWSSTANDS,16.06,Pound Sterling (826),1.000000000,16.06,Debit,25377758009030137582006,02/02/2018,GLOUCESTER CC
Gloucester City Council,23UE,Guildhall Bar & Caf�,GH005,Catering Provisions,3103,10/01/2018,09/01/2018,ASDA SUPERSTORE,GLOUCESTER,GBR,GL1 1DS,REDACTED,556*********1155,5411,"GROCERY STORES, SUPERMARKETS",14.41,Pound Sterling (826),1.000000000,14.41,Debit,45377758010040198626811,02/02/2018,GLOUCESTER CC
Gloucester City Council,23UE,Guildhall Bar & Caf�,GH005,Catering Provisions,3103,10/01/2018,09/01/2018,ICELAND,GLOUCESTER,GBR,GL1 1SA,REDACTED,556*********1155,5411,"GROCERY STORES, SUPERMARKETS",5.92,Pound Sterling (826),1.000000000,5.92,Debit,25377758010040076558229,02/02/2018,GLOUCESTER CC
Gloucester City Council,23UE,Guildhall Bar & Caf�,GH005,Equipment and Furniture,3001,10/01/2018,09/01/2018,HOMEBASE LTD 135,GLOUCESTER,,GL43BD,REDACTED,556*********1155,5211,LUMBER AND BUILDING MATERIALS STORES,32.02,Pound Sterling (826),1.000000000,32.02,Debit,85481478010011198947634,02/02/2018,GLOUCESTER CC
Gloucester City Council,23UE,Guildhall Bar & Caf�,GH005,Catering Provisions,3103,12/01/2018,11/01/2018,SAINSBURYS SACAT 0771,GLOUCESTER,GBR,GL1 2AG,REDACTED,556*********1155,5411,"GROCERY STORES, SUPERMARKETS",1.35,Pound Sterling (826),1.000000000,1.35,Debit,25425158012060103074597,02/02/2018,GLOUCESTER CC
Gloucester City Council,23UE,Guildhall Bar & Caf�,GH005,Catering Provisions,3103,12/01/2018,11/01/2018,BOOKER LIMITED GLOUCES,GLOUCESTER,GBR,GL4 3RT,REDACTED,556*********1155,5811,CATERERS,75.61,Pound Sterling (826),1.000000000,75.61,Debit,55184228011890123574535,02/02/2018,GLOUCESTER CC
Gloucester City Council,23UE,Guildhall Bar & Caf�,GH005,Equipment and Furniture,3001,15/01/2018,12/01/2018,B & Q 1179,GLOUCESTER,,GL12SG,REDACTED,556*********1155,5211,LUMBER AND BUILDING MATERIALS STORES,33.48,Pound Sterling (826),1.000000000,33.48,Debit,85481478013011846101391,02/02/2018,GLOUCESTER CC
Gloucester City Council,23UE,Blackfriars ,GH010,Equipment and Furniture,3001,15/01/2018,12/01/2018,B & Q 1179,GLOUCESTER,,GL12SG,REDACTED,556*********1155,5211,LUMBER AND BUILDING MATERIALS STORES,18.48,Pound Sterling (826),1.000000000,18.48,Debit,85481478013011846101409,02/02/2018,GLOUCESTER CC
Gloucester City Council,23UE,Guildhall Bar & Caf�,GH005,Equipment and Furniture,3001,16/01/2018,15/01/2018,AQUAJARDIN LTD,STONEHOUSE,GBR,GL10 3DP,REDACTED,556*********1155,5261,"NURSERIES, LAWN AND GARDEN SUPPLY STORES",8.98,Pound Sterling (826),1.000000000,8.98,Debit,25425158016080036977779,02/02/2018,GLOUCESTER CC
Gloucester City Council,23UE,Guildhall Bar & Caf�,GH005,Equipment and Furniture,3001,16/01/2018,15/01/2018,BLOOMS GLOUCESTER,GLOUCESTER,,GL10 3DP,REDACTED,556*********1155,5261,"NURSERIES, LAWN AND GARDEN SUPPLY STORES",13.2,Pound Sterling (826),1.000000000,13.2,Debit,85481478016012509453803,02/02/2018,GLOUCESTER CC
Gloucester City Council,23UE,Guildhall Bar & Caf�,GH005,Catering Provisions,3103,16/01/2018,15/01/2018,ICELAND,GLOUCESTER,GBR,GL1 1SA,REDACTED,556*********1155,5411,"GROCERY STORES, SUPERMARKETS",4.44,Pound Sterling (826),1.000000000,4.44,Debit,25377758016080076689917,02/02/2018,GLOUCESTER CC
Gloucester City Council,23UE,Guildhall Bar & Caf�,GH005,Catering Provisions,3103,17/01/2018,16/01/2018,ICELAND,GLOUCESTER,GBR,GL1 1SA,REDACTED,556*********1155,5411,"GROCERY STORES, SUPERMARKETS",6.81,Pound Sterling (826),1.000000000,6.81,Debit,25377758017090071994310,02/02/2018,GLOUCESTER CC
Gloucester City Council,23UE,Guildhall Bar & Caf�,GH005,Catering Provisions,3103,18/01/2018,17/01/2018,ICELAND,GLOUCESTER,GBR,GL1 1SA,REDACTED,556*********1155,5411,"GROCERY STORES, SUPERMARKETS",3.3,Pound Sterling (826),1.000000000,3.3,Debit,25377758018000077135387,02/02/2018,GLOUCESTER CC
Gloucester City Council,23UE,Guildhall Bar & Caf�,GH005,Catering Provisions,3103,19/01/2018,18/01/2018,SAINSBURYS SACAT 0771,GLOUCESTER,GBR,GL1 2AG,REDACTED,556*********1155,5411,"GROCERY STORES, SUPERMARKETS",2.7,Pound Sterling (826),1.000000000,2.7,Debit,25425158019010119375572,02/02/2018,GLOUCESTER CC
Gloucester City Council,23UE,The Arbor,CC001,Equipment and Furniture,3001,19/01/2018,18/01/2018,BOOKER LIMITED GLOUCES,GLOUCESTER,GBR,GL4 3RT,REDACTED,556*********1155,5811,CATERERS,50.94,Pound Sterling (826),1.000000000,50.94,Debit,55184228018890192479288,02/02/2018,GLOUCESTER CC
Gloucester City Council,23UE,Guildhall Bar & Caf�,GH005,Catering Provisions,3103,24/01/2018,23/01/2018,SAINSBURYS SACAT 0771,GLOUCESTER,GBR,GL1 2AG,REDACTED,556*********1155,5411,"GROCERY STORES, SUPERMARKETS",11.2,Pound Sterling (826),1.000000000,11.2,Debit,25425158024040110554209,02/02/2018,GLOUCESTER CC
Gloucester City Council,23UE,Guildhall Bar & Caf�,GH005,Catering Provisions,3103,25/01/2018,24/01/2018,BOOKER LIMITED GLOUCES,GLOUCESTER,GBR,GL4 3RT,REDACTED,556*********1155,5811,CATERERS,190.73,Pound Sterling (826),1.000000000,190.73,Debit,55184228024890252027177,02/02/2018,GLOUCESTER CC
Gloucester City Council,23UE,Guildhall Bar & Caf�,GH005,Catering Provisions,3103,26/01/2018,25/01/2018,ASDA SUPERSTORE,GLOUCESTER,GBR,GL1 1DS,REDACTED,556*********1155,5411,"GROCERY STORES, SUPERMARKETS",23.96,Pound Sterling (826),1.000000000,23.96,Debit,45377758026060208855988,02/02/2018,GLOUCESTER CC
Gloucester City Council,23UE,Guildhall Bar & Caf�,GH005,Catering Provisions,3103,29/01/2018,26/01/2018,SAINSBURYS SACAT 0608,GLOUCESTER,GBR,GL4 3RT,REDACTED,556*********1155,5411,"GROCERY STORES, SUPERMARKETS",7.8,Pound Sterling (826),1.000000000,7.8,Debit,25425158027070138419470,02/02/2018,GLOUCESTER CC
Gloucester City Council,23UE,Guildhall Bar & Caf�,GH005,Catering Provisions,3103,29/01/2018,26/01/2018,FAT TONI S GLOUCESTER,GLOUCESTER,GBR,GL1 1RP,REDACTED,556*********1155,5814,FAST FOOD RESTAURANTS,72,Pound Sterling (826),1.000000000,72,Debit,55184228026940263682011,02/02/2018,GLOUCESTER CC
Gloucester City Council,23UE,Guildhall Bar & Caf�,GH005,Catering Provisions,3103,29/01/2018,26/01/2018,ASDA SUPERSTORE,GLOUCESTER,GBR,GL1 1DS,REDACTED,556*********1155,5411,"GROCERY STORES, SUPERMARKETS",16.09,Pound Sterling (826),1.000000000,16.09,Debit,45377758027070233508204,02/02/2018,GLOUCESTER CC
Gloucester City Council,23UE,Guildhall Bar & Caf�,GH005,Catering Provisions,3103,29/01/2018,26/01/2018,BOOKER LIMITED GLOUCES,GLOUCESTER,GBR,GL4 3RT,REDACTED,556*********1155,5811,CATERERS,48.86,Pound Sterling (826),1.000000000,48.86,Debit,55184228026890274977332,02/02/2018,GLOUCESTER CC
Gloucester City Council,23UE,Guildhall Bar & Caf�,GH005,Catering Provisions,3103,29/01/2018,28/01/2018,ICELAND,GLOUCESTER,GBR,GL1 1SA,REDACTED,556*********1155,5411,"GROCERY STORES, SUPERMARKETS",5.92,Pound Sterling (826),1.000000000,5.92,Debit,65377758029070883821085,02/02/2018,GLOUCESTER CC
Gloucester City Council,23UE,Guildhall Bar & Caf�,GH005,Catering Provisions,3103,29/01/2018,28/01/2018,ICELAND,GLOUCESTER,GBR,GL1 1SA,REDACTED,556*********1155,5411,"GROCERY STORES, SUPERMARKETS",4.98,Pound Sterling (826),1.000000000,4.98,Debit,65377758029070883821663,02/02/2018,GLOUCESTER CC
Gloucester City Council,23UE,Guildhall Bar & Caf�,GH005,Catering Provisions,3103,29/01/2018,28/01/2018,BOOKER LIMITED GLOUCES,GLOUCESTER,GBR,GL4 3RT,REDACTED,556*********1155,5811,CATERERS,49.55,Pound Sterling (826),1.000000000,49.55,Debit,55184228028870298977631,02/02/2018,GLOUCESTER CC
Gloucester City Council,23UE,Tourist Information Centre,TI002,Public Transport - Staff,2402,08/01/2018,05/01/2018,Trainline,London,GBR,1445,REDACTED,556*********8997,4112,PASSENGER RAILWAYS,44.37,Pound Sterling (826),1.000000000,44.37,Debit,85130088005800294977142,02/02/2018,GLOUCESTER CC
Gloucester City Council,23UE,Tourist Information Centre,TI002,Equipment and Furniture,3001,01/02/2018,31/01/2018,WWW.OFFICEFURNITUREONL,INTERNET,GBR,DG1 3SJ,REDACTED,556*********8997,5712,"FURNITURE, HOME FURNISHINGS AND EQUIPMENT STORES",441.6,Pound Sterling (826),1.000000000,441.6,Debit,25425158032000094839232,02/02/2018,GLOUCESTER CC
Gloucester City Council,23UE,Civic Admin & Hospitality,DS001,Hospitality & Refreshments,3104,05/01/2018,04/01/2018,SAINSBURYS SACAT 2221,GLOUCESTER,GBR,GL2 5SA,REDACTED,556*********4301,5411,"GROCERY STORES, SUPERMARKETS",21.45,Pound Sterling (826),1.000000000,21.45,Debit,25425158005010108166251,02/02/2018,GLOUCESTER CC
Gloucester City Council,23UE,Civic Admin & Hospitality,DS001,Hospitality & Refreshments,3104,15/01/2018,12/01/2018,TESCO STORES (6819),GLOUCESTER,GBR,GL1 1TP,REDACTED,556*********4301,5411,"GROCERY STORES, SUPERMARKETS",2.18,Pound Sterling (826),1.000000000,2.18,Debit,65377758013070360272263,02/02/2018,GLOUCESTER CC
Gloucester City Council,23UE,Docks Complex - Services,AM006,Operative Clothing Allowances,0502,16/01/2018,15/01/2018,SAFPRO INDUSTRIAL SUPP,GLOUCESTER,,GL2 5EU,REDACTED,556*********4301,5085,INDUSTRIAL SUPPLIES NOT ELSEWHERE CLASSI,133.21,Pound Sterling (826),1.000000000,133.21,Debit,55541968015938000116873,02/02/2018,GLOUCESTER CC
Gloucester City Council,23UE,Civic Admin & Hospitality,DS001,Hospitality & Refreshments,3104,30/01/2018,29/01/2018,TESCO STORE 2581,GLOUCESTER,GBR,GL1 2SR,REDACTED,556*********4301,5411,"GROCERY STORES, SUPERMARKETS",8.68,Pound Sterling (826),1.000000000,8.68,Debit,45377758030080268619169,02/02/2018,GLOUCESTER CC
Gloucester City Council,23UE,Docks Complex - Services,AM006,Operative Clothing Allowances,0502,11/01/2018,10/01/2018,SAFPRO INDUSTRIAL SUPP,GLOUCESTER,,GL2 5EU,REDACTED,556*********6128,5085,INDUSTRIAL SUPPLIES NOT ELSEWHERE CLASSI,72,Pound Sterling (826),1.000000000,72,Debit,55541968010939000110663,02/02/2018,GLOUCESTER CC
Gloucester City Council,23UE,Civic Admin & Hospitality,DS001,Hospitality & Refreshments,3104,23/01/2018,22/01/2018,MCOLLS,GLOUCESTERSHI,GBR,GL1 2DN,REDACTED,556*********6128,5499,"MISC FOOD STORES-SPECIALITY,CONVENIENCE,MARKETS,VENDING MACHINES",2.5,Pound Sterling (826),1.000000000,2.5,Debit,25377758023030140469029,02/02/2018,GLOUCESTER CC
Gloucester City Council,23UE,Civic Admin & Hospitality,DS001,Hospitality & Refreshments,3104,25/01/2018,24/01/2018,SAINSBURYS 2221,GLOUCESTER,GBR,GL2 5SA,REDACTED,556*********6128,5411,"GROCERY STORES, SUPERMARKETS",32.7,Pound Sterling (826),1.000000000,32.7,Debit,25425158025050114838671,02/02/2018,GLOUCESTER CC
Gloucester City Council,23UE,Members Support,DS002,Mileage and Travel Allowances,2401,09/01/2018,08/01/2018,Trainline,London,GBR,1445,REDACTED,556*********3029,4112,PASSENGER RAILWAYS,210.43,Pound Sterling (826),1.000000000,210.43,Debit,85130088008801401700366,02/02/2018,GLOUCESTER CC
Gloucester City Council,23UE,Members Support,DS002,Mileage and Travel Allowances,2401,09/01/2018,08/01/2018,Trainline,London,GBR,1445,REDACTED,556*********3029,4112,PASSENGER RAILWAYS,29.53,Pound Sterling (826),1.000000000,29.53,Debit,85130088008801401701547,02/02/2018,GLOUCESTER CC
Gloucester City Council,23UE,Members Support,DS002,Mileage and Travel Allowances,2401,10/01/2018,09/01/2018,Trainline,London,GBR,1445,REDACTED,556*********3029,4112,PASSENGER RAILWAYS,29.53,Pound Sterling (826),1.000000000,29.53,Debit,85130088009801436666557,02/02/2018,GLOUCESTER CC
Gloucester City Council,23UE,Civic Admin & Hospitality,DS001,General Supplies/Materials,3025,12/01/2018,11/01/2018,AMAZON EU AMAZON.CO.UK,AMAZON.CO.UK,LUX,,REDACTED,556*********3029,5999,MISCELLANEOUS AND RETAIL STORES,25.99,Pound Sterling (826),1.000000000,25.99,Debit,85389248011801139534338,02/02/2018,GLOUCESTER CC
Gloucester City Council,23UE,Homelessness,HS002,B&B Payments,1303,03/01/2018,02/01/2018,TRAVELODGE GB0000,THAME,,OX9 3AT,REDACTED,556*********6959,3615,TRAVELODGE,318,Pound Sterling (826),1.000000000,318,Debit,55504438002298119559826,02/02/2018,GLOUCESTER CC
Gloucester City Council,23UE,Homelessness,HS002,B&B Payments,1303,03/01/2018,02/01/2018,TRAVELODGE GB0000,THAME,,OX9 3AT,REDACTED,556*********6959,3615,TRAVELODGE,340,Pound Sterling (826),1.000000000,340,Debit,55504438002298119564529,02/02/2018,GLOUCESTER CC
Gloucester City Council,23UE,Homelessness,HS002,B&B Payments,1303,03/01/2018,02/01/2018,TRAVELODGE GB0000,THAME,,OX9 3AT,REDACTED,556*********6959,3615,TRAVELODGE,318,Pound Sterling (826),1.000000000,318,Debit,55504438002298119574619,02/02/2018,GLOUCESTER CC
Gloucester City Council,23UE,Homelessness,HS002,B&B Payments,1303,03/01/2018,02/01/2018,TRAVELODGE GB0000,THAME,,OX9 3AT,REDACTED,556*********6959,3615,TRAVELODGE,172,Pound Sterling (826),1.000000000,172,Debit,55504438002298119647407,02/02/2018,GLOUCESTER CC
Gloucester City Council,23UE,Homelessness,HS002,B&B Payments,1303,03/01/2018,02/01/2018,TRAVELODGE GB0000,THAME,,OX9 3AT,REDACTED,556*********6959,3615,TRAVELODGE,-296,Pound Sterling (826),1.000000000,-296,Credit,55504438002295386136551,02/02/2018,GLOUCESTER CC
Gloucester City Council,23UE,Homelessness,HS002,B&B Payments,1303,04/01/2018,03/01/2018,TRAVELODGE GB0000,THAME,,OX9 3AT,REDACTED,556*********6959,3615,TRAVELODGE,60,Pound Sterling (826),1.000000000,60,Debit,55504438003298126538150,02/02/2018,GLOUCESTER CC
Gloucester City Council,23UE,Homelessness,HS002,B&B Payments,1303,05/01/2018,04/01/2018,TRAVELODGE GB0000,THAME,,OX9 3AT,REDACTED,556*********6959,3615,TRAVELODGE,56,Pound Sterling (826),1.000000000,56,Debit,55504438004298133183247,02/02/2018,GLOUCESTER CC
Gloucester City Council,23UE,Homelessness,HS002,B&B Payments,1303,05/01/2018,04/01/2018,TRAVELODGE GB0000,THAME,,OX9 3AT,REDACTED,556*********6959,3615,TRAVELODGE,260,Pound Sterling (826),1.000000000,260,Debit,55504438004298133177256,02/02/2018,GLOUCESTER CC
Gloucester City Council,23UE,Homelessness,HS002,B&B Payments,1303,08/01/2018,05/01/2018,TRAVELODGE GB0000,THAME,,OX9 3AT,REDACTED,556*********6959,3615,TRAVELODGE,156,Pound Sterling (826),1.000000000,156,Debit,55504438005298139837779,02/02/2018,GLOUCESTER CC
Gloucester City Council,23UE,Homelessness,HS002,B&B Payments,1303,08/01/2018,05/01/2018,TRAVELODGE GB0000,THAME,,OX9 3AT,REDACTED,556*********6959,3615,TRAVELODGE,52,Pound Sterling (826),1.000000000,52,Debit,55504438005298139721197,02/02/2018,GLOUCESTER CC
Gloucester City Council,23UE,Homelessness,HS002,B&B Payments,1303,08/01/2018,05/01/2018,TRAVELODGE GB0000,THAME,,OX9 3AT,REDACTED,556*********6959,3615,TRAVELODGE,364,Pound Sterling (826),1.000000000,364,Debit,55504438005298139714341,02/02/2018,GLOUCESTER CC
Gloucester City Council,23UE,Homelessness Prevention,HS003,Mileage and Travel Allowances,2401,08/01/2018,06/01/2018,NATIONAL EXPRESS LIMIT,BIRMINGHAM,,B5 6DD,REDACTED,556*********6959,4131,"BUS LINES, CHARTERS, TOUR BUSES",65.4,Pound Sterling (826),1.000000000,65.4,Debit,85481478007010652279489,02/02/2018,GLOUCESTER CC
Gloucester City Council,23UE,Homelessness Prevention,HS003,Mileage and Travel Allowances,2401,08/01/2018,06/01/2018,NATIONAL EXPRESS LIMIT,BIRMINGHAM,,B5 6DD,REDACTED,556*********6959,4131,"BUS LINES, CHARTERS, TOUR BUSES",30.6,Pound Sterling (826),1.000000000,30.6,Debit,85481478007010652389924,02/02/2018,GLOUCESTER CC
Gloucester City Council,23UE,Rehousing,HS001,Public Transport - Staff,2402,09/01/2018,08/01/2018,Trainline,London,GBR,1445,REDACTED,556*********6959,4112,PASSENGER RAILWAYS,10.56,Pound Sterling (826),1.000000000,10.56,Debit,85130088008801398781999,02/02/2018,GLOUCESTER CC
Gloucester City Council,23UE,Homelessness,HS002,B&B Payments,1303,09/01/2018,08/01/2018,TRAVELODGE GB0000,THAME,,OX9 3AT,REDACTED,556*********6959,3615,TRAVELODGE,64,Pound Sterling (826),1.000000000,64,Debit,55504438008298156780974,02/02/2018,GLOUCESTER CC
Gloucester City Council,23UE,Homelessness,HS002,B&B Payments,1303,09/01/2018,08/01/2018,TRAVELODGE GB0000,THAME,,OX9 3AT,REDACTED,556*********6959,3615,TRAVELODGE,426,Pound Sterling (826),1.000000000,426,Debit,55504438008298156908864,02/02/2018,GLOUCESTER CC
Gloucester City Council,23UE,Homelessness,HS002,B&B Payments,1303,09/01/2018,08/01/2018,TRAVELODGE GB0000,THAME,,OX9 3AT,REDACTED,556*********6959,3615,TRAVELODGE,634,Pound Sterling (826),1.000000000,634,Debit,55504438008298156927377,02/02/2018,GLOUCESTER CC
Gloucester City Council,23UE,Homelessness,HS002,B&B Payments,1303,09/01/2018,08/01/2018,TRAVELODGE GB0000,THAME,,OX9 3AT,REDACTED,556*********6959,3615,TRAVELODGE,426,Pound Sterling (826),1.000000000,426,Debit,55504438008298156982166,02/02/2018,GLOUCESTER CC
Gloucester City Council,23UE,Homelessness,HS002,B&B Payments,1303,10/01/2018,09/01/2018,TRAVELODGE GB0000,THAME,,OX9 3AT,REDACTED,556*********6959,3615,TRAVELODGE,597,Pound Sterling (826),1.000000000,597,Debit,55504438009298162854002,02/02/2018,GLOUCESTER CC
Gloucester City Council,23UE,Homelessness,HS002,B&B Payments,1303,10/01/2018,09/01/2018,TRAVELODGE GB0000,THAME,,OX9 3AT,REDACTED,556*********6959,3615,TRAVELODGE,422,Pound Sterling (826),1.000000000,422,Debit,55504438009298162792764,02/02/2018,GLOUCESTER CC
Gloucester City Council,23UE,Homelessness,HS002,B&B Payments,1303,11/01/2018,10/01/2018,TRAVELODGE GB0000,THAME,,OX9 3AT,REDACTED,556*********6959,3615,TRAVELODGE,85,Pound Sterling (826),1.000000000,85,Debit,55504438010298169357444,02/02/2018,GLOUCESTER CC
Gloucester City Council,23UE,Homelessness,HS002,B&B Payments,1303,11/01/2018,10/01/2018,TRAVELODGE GB0000,THAME,,OX9 3AT,REDACTED,556*********6959,3615,TRAVELODGE,-238,Pound Sterling (826),1.000000000,-238,Credit,55504438010298169370645,02/02/2018,GLOUCESTER CC
Gloucester City Council,23UE,Homelessness,HS002,B&B Payments,1303,12/01/2018,11/01/2018,TRAVELODGE GB0000,THAME,,OX9 3AT,REDACTED,556*********6959,3615,TRAVELODGE,538,Pound Sterling (826),1.000000000,538,Debit,55504438011298175253669,02/02/2018,GLOUCESTER CC
Gloucester City Council,23UE,Homelessness,HS002,B&B Payments,1303,12/01/2018,11/01/2018,TRAVELODGE GB0000,THAME,,OX9 3AT,REDACTED,556*********6959,3615,TRAVELODGE,58,Pound Sterling (826),1.000000000,58,Debit,55504438011298175281942,02/02/2018,GLOUCESTER CC
Gloucester City Council,23UE,Homelessness,HS002,B&B Payments,1303,15/01/2018,12/01/2018,TRAVELODGE GB0000,THAME,,OX9 3AT,REDACTED,556*********6959,3615,TRAVELODGE,126,Pound Sterling (826),1.000000000,126,Debit,55504438012298181595185,02/02/2018,GLOUCESTER CC
Gloucester City Council,23UE,Homelessness,HS002,B&B Payments,1303,16/01/2018,15/01/2018,TRAVELODGE GB0000,THAME,,OX9 3AT,REDACTED,556*********6959,3615,TRAVELODGE,424,Pound Sterling (826),1.000000000,424,Debit,55504438015298198019366,02/02/2018,GLOUCESTER CC
Gloucester City Council,23UE,Homelessness,HS002,B&B Payments,1303,16/01/2018,15/01/2018,TRAVELODGE GB0000,THAME,,OX9 3AT,REDACTED,556*********6959,3615,TRAVELODGE,67,Pound Sterling (826),1.000000000,67,Debit,55504438015298198141194,02/02/2018,GLOUCESTER CC
Gloucester City Council,23UE,Homelessness,HS002,B&B Payments,1303,16/01/2018,15/01/2018,TRAVELODGE GB0000,THAME,,OX9 3AT,REDACTED,556*********6959,3615,TRAVELODGE,512,Pound Sterling (826),1.000000000,512,Debit,55504438015298198025546,02/02/2018,GLOUCESTER CC
Gloucester City Council,23UE,Homelessness,HS002,B&B Payments,1303,17/01/2018,16/01/2018,TRAVELODGE GB0000,THAME,,OX9 3AT,REDACTED,556*********6959,3615,TRAVELODGE,224,Pound Sterling (826),1.000000000,224,Debit,55504438016298104055651,02/02/2018,GLOUCESTER CC
Gloucester City Council,23UE,Homelessness,HS002,B&B Payments,1303,17/01/2018,16/01/2018,TRAVELODGE GB0000,THAME,,OX9 3AT,REDACTED,556*********6959,3615,TRAVELODGE,224,Pound Sterling (826),1.000000000,224,Debit,55504438016298104035232,02/02/2018,GLOUCESTER CC
Gloucester City Council,23UE,Homelessness,HS002,B&B Payments,1303,17/01/2018,16/01/2018,TRAVELODGE GB0000,THAME,,OX9 3AT,REDACTED,556*********6959,3615,TRAVELODGE,507,Pound Sterling (826),1.000000000,507,Debit,55504438016298104119382,02/02/2018,GLOUCESTER CC
Gloucester City Council,23UE,Homelessness,HS002,B&B Payments,1303,17/01/2018,16/01/2018,TRAVELODGE GB0000,THAME,,OX9 3AT,REDACTED,556*********6959,3615,TRAVELODGE,83,Pound Sterling (826),1.000000000,83,Debit,55504438016298104071674,02/02/2018,GLOUCESTER CC
Gloucester City Council,23UE,Homelessness,HS002,B&B Payments,1303,18/01/2018,17/01/2018,TRAVELODGE GB0000,THAME,,OX9 3AT,REDACTED,556*********6959,3615,TRAVELODGE,437,Pound Sterling (826),1.000000000,437,Debit,55504438017298110101183,02/02/2018,GLOUCESTER CC
Gloucester City Council,23UE,Homelessness,HS002,B&B Payments,1303,19/01/2018,18/01/2018,TRAVELODGE GB0000,THAME,,OX9 3AT,REDACTED,556*********6959,3615,TRAVELODGE,275,Pound Sterling (826),1.000000000,275,Debit,55504438018298116019560,02/02/2018,GLOUCESTER CC
Gloucester City Council,23UE,Homelessness,HS002,B&B Payments,1303,19/01/2018,18/01/2018,TRAVELODGE GB0000,THAME,,OX9 3AT,REDACTED,556*********6959,3615,TRAVELODGE,208,Pound Sterling (826),1.000000000,208,Debit,55504438018298115999754,02/02/2018,GLOUCESTER CC
Gloucester City Council,23UE,Homelessness,HS002,B&B Payments,1303,19/01/2018,18/01/2018,TRAVELODGE GB0000,THAME,,OX9 3AT,REDACTED,556*********6959,3615,TRAVELODGE,491,Pound Sterling (826),1.000000000,491,Debit,55504438018298115975697,02/02/2018,GLOUCESTER CC
Gloucester City Council,23UE,Homelessness,HS002,B&B Payments,1303,22/01/2018,19/01/2018,TRAVELODGE GB0000,THAME,,OX9 3AT,REDACTED,556*********6959,3615,TRAVELODGE,446,Pound Sterling (826),1.000000000,446,Debit,55504438019298122150127,02/02/2018,GLOUCESTER CC
Gloucester City Council,23UE,Homelessness,HS002,B&B Payments,1303,22/01/2018,19/01/2018,TRAVELODGE GB0000,THAME,,OX9 3AT,REDACTED,556*********6959,3615,TRAVELODGE,217,Pound Sterling (826),1.000000000,217,Debit,55504438019298122248236,02/02/2018,GLOUCESTER CC
Gloucester City Council,23UE,Homelessness,HS002,B&B Payments,1303,22/01/2018,19/01/2018,TRAVELODGE GB0000,THAME,,OX9 3AT,REDACTED,556*********6959,3615,TRAVELODGE,150,Pound Sterling (826),1.000000000,150,Debit,55504438019298122251461,02/02/2018,GLOUCESTER CC
Gloucester City Council,23UE,Homelessness,HS002,B&B Payments,1303,22/01/2018,19/01/2018,TRAVELODGE GB0000,THAME,,OX9 3AT,REDACTED,556*********6959,3615,TRAVELODGE,-150,Pound Sterling (826),1.000000000,-150,Credit,55504438021295398035012,02/02/2018,GLOUCESTER CC
Gloucester City Council,23UE,Homelessness,HS002,B&B Payments,1303,23/01/2018,22/01/2018,TRAVELODGE GB0000,THAME,,OX9 3AT,REDACTED,556*********6959,3615,TRAVELODGE,309,Pound Sterling (826),1.000000000,309,Debit,55504438022298138670030,02/02/2018,GLOUCESTER CC
Gloucester City Council,23UE,Homelessness,HS002,B&B Payments,1303,23/01/2018,22/01/2018,TRAVELODGE GB0000,THAME,,OX9 3AT,REDACTED,556*********6959,3615,TRAVELODGE,71,Pound Sterling (826),1.000000000,71,Debit,55504438022298138697470,02/02/2018,GLOUCESTER CC
Gloucester City Council,23UE,Homelessness,HS002,B&B Payments,1303,23/01/2018,22/01/2018,TRAVELODGE GB0000,THAME,,OX9 3AT,REDACTED,556*********6959,3615,TRAVELODGE,255,Pound Sterling (826),1.000000000,255,Debit,55504438022298138679973,02/02/2018,GLOUCESTER CC
Gloucester City Council,23UE,Homelessness,HS002,B&B Payments,1303,24/01/2018,23/01/2018,THE YEW TREE LONGHOPE,LONGHOPE,GBR,GL170QD,REDACTED,556*********6959,5812,"EATING PLACES, RESTAURANTS",600,Pound Sterling (826),1.000000000,600,Debit,55184228023930234569572,02/02/2018,GLOUCESTER CC
Gloucester City Council,23UE,Homelessness,HS002,B&B Payments,1303,24/01/2018,23/01/2018,TRAVELODGE GB0000,THAME,,OX9 3AT,REDACTED,556*********6959,3615,TRAVELODGE,167,Pound Sterling (826),1.000000000,167,Debit,55504438023298144868080,02/02/2018,GLOUCESTER CC
Gloucester City Council,23UE,Homelessness,HS002,B&B Payments,1303,24/01/2018,23/01/2018,TRAVELODGE GB0000,THAME,,OX9 3AT,REDACTED,556*********6959,3615,TRAVELODGE,651,Pound Sterling (826),1.000000000,651,Debit,55504438023298144865698,02/02/2018,GLOUCESTER CC
Gloucester City Council,23UE,Homelessness,HS002,B&B Payments,1303,24/01/2018,23/01/2018,TRAVELODGE GB0000,THAME,,OX9 3AT,REDACTED,556*********6959,3615,TRAVELODGE,460,Pound Sterling (826),1.000000000,460,Debit,55504438023298144797586,02/02/2018,GLOUCESTER CC
Gloucester City Council,23UE,Homelessness,HS002,B&B Payments,1303,25/01/2018,24/01/2018,TRAVELODGE GB0000,THAME,,OX9 3AT,REDACTED,556*********6959,3615,TRAVELODGE,142,Pound Sterling (826),1.000000000,142,Debit,55504438024298150579117,02/02/2018,GLOUCESTER CC
Gloucester City Council,23UE,Homelessness,HS002,B&B Payments,1303,26/01/2018,25/01/2018,TRAVELODGE GB0000,THAME,,OX9 3AT,REDACTED,556*********6959,3615,TRAVELODGE,54,Pound Sterling (826),1.000000000,54,Debit,55504438025298156702001,02/02/2018,GLOUCESTER CC
Gloucester City Council,23UE,Homelessness,HS002,B&B Payments,1303,26/01/2018,25/01/2018,TRAVELODGE GB0000,THAME,,OX9 3AT,REDACTED,556*********6959,3615,TRAVELODGE,54,Pound Sterling (826),1.000000000,54,Debit,55504438025298156615278,02/02/2018,GLOUCESTER CC
Gloucester City Council,23UE,Homelessness,HS002,B&B Payments,1303,29/01/2018,26/01/2018,STAGECOACH SERVICE,STOCKPORT,GBR,SK3 0DU,REDACTED,556*********6959,4131,"BUS LINES, CHARTERS, TOUR BUSES",19.4,Pound Sterling (826),1.000000000,19.4,Debit,15425158027070020663632,02/02/2018,GLOUCESTER CC
Gloucester City Council,23UE,Homelessness,HS002,B&B Payments,1303,29/01/2018,26/01/2018,STAGECOACH SERVICE,STOCKPORT,GBR,SK3 0DU,REDACTED,556*********6959,4131,"BUS LINES, CHARTERS, TOUR BUSES",6.8,Pound Sterling (826),1.000000000,6.8,Debit,15425158027070020661446,02/02/2018,GLOUCESTER CC
Gloucester City Council,23UE,Homelessness Prevention,HS003,Mileage and Travel Allowances,2401,29/01/2018,26/01/2018,APL*/Starline,+442035030600,GBR,W1W 5LS,REDACTED,556*********6959,4121,TAXICABS/LIMOUSINES,73.5,Pound Sterling (826),1.000000000,73.5,Debit,75282478027130668603767,02/02/2018,GLOUCESTER CC
Gloucester City Council,23UE,Homelessness,HS002,B&B Payments,1303,29/01/2018,26/01/2018,TRAVELODGE GB0000,THAME,,OX9 3AT,REDACTED,556*********6959,3615,TRAVELODGE,626,Pound Sterling (826),1.000000000,626,Debit,55504438026298163123661,02/02/2018,GLOUCESTER CC
Gloucester City Council,23UE,Homelessness,HS002,B&B Payments,1303,29/01/2018,26/01/2018,TRAVELODGE GB0000,THAME,,OX9 3AT,REDACTED,556*********6959,3615,TRAVELODGE,225,Pound Sterling (826),1.000000000,225,Debit,55504438026298163126912,02/02/2018,GLOUCESTER CC
Gloucester City Council,23UE,Homelessness,HS002,B&B Payments,1303,29/01/2018,26/01/2018,TRAVELODGE GB0000,THAME,,OX9 3AT,REDACTED,556*********6959,3615,TRAVELODGE,225,Pound Sterling (826),1.000000000,225,Debit,55504438026298163220384,02/02/2018,GLOUCESTER CC
Gloucester City Council,23UE,Homelessness,HS002,B&B Payments,1303,29/01/2018,26/01/2018,TRAVELODGE GB0000,THAME,,OX9 3AT,REDACTED,556*********6959,3615,TRAVELODGE,175,Pound Sterling (826),1.000000000,175,Debit,55504438026298163223115,02/02/2018,GLOUCESTER CC
Gloucester City Council,23UE,Homelessness,HS002,B&B Payments,1303,29/01/2018,26/01/2018,TRAVELODGE GB0000,THAME,,OX9 3AT,REDACTED,556*********6959,3615,TRAVELODGE,328,Pound Sterling (826),1.000000000,328,Debit,55504438026298163224113,02/02/2018,GLOUCESTER CC
Gloucester City Council,23UE,Homelessness,HS002,B&B Payments,1303,29/01/2018,26/01/2018,TRAVELODGE GB0000,THAME,,OX9 3AT,REDACTED,556*********6959,3615,TRAVELODGE,429,Pound Sterling (826),1.000000000,429,Debit,55504438026298163241703,02/02/2018,GLOUCESTER CC
Gloucester City Council,23UE,Homelessness,HS002,B&B Payments,1303,01/02/2018,31/01/2018,TRAVELODGE GB0000,THAME,,OX9 3AT,REDACTED,556*********6959,3615,TRAVELODGE,269,Pound Sterling (826),1.000000000,269,Debit,55504438031298193722857,02/02/2018,GLOUCESTER CC
Gloucester City Council,23UE,Homelessness,HS002,B&B Payments,1303,01/02/2018,31/01/2018,TRAVELODGE GB0000,THAME,,OX9 3AT,REDACTED,556*********6959,3615,TRAVELODGE,1024,Pound Sterling (826),1.000000000,1024,Debit,55504438031298193626025,02/02/2018,GLOUCESTER CC
Gloucester City Council,23UE,Homelessness,HS002,B&B Payments,1303,01/02/2018,31/01/2018,TRAVELODGE GB0000,THAME,,OX9 3AT,REDACTED,556*********6959,3615,TRAVELODGE,437,Pound Sterling (826),1.000000000,437,Debit,55504438031298193629284,02/02/2018,GLOUCESTER CC
Gloucester City Council,23UE,Homelessness,HS002,B&B Payments,1303,02/02/2018,01/02/2018,THE YEW TREE LONGHOPE,LONGHOPE,GBR,GL170QD,REDACTED,556*********6959,5812,"EATING PLACES, RESTAURANTS",525,Pound Sterling (826),1.000000000,525,Debit,55184228032940321123448,02/02/2018,GLOUCESTER CC
Gloucester City Council,23UE,Homelessness,HS002,B&B Payments,1303,02/02/2018,01/02/2018,TRAVELODGE GB0000,THAME,,OX9 3AT,REDACTED,556*********6959,3615,TRAVELODGE,275,Pound Sterling (826),1.000000000,275,Debit,55504438032298100313096,02/02/2018,GLOUCESTER CC
Gloucester City Council,23UE,Homelessness,HS002,B&B Payments,1303,02/02/2018,01/02/2018,TRAVELODGE GB0000,THAME,,OX9 3AT,REDACTED,556*********6959,3615,TRAVELODGE,208,Pound Sterling (826),1.000000000,208,Debit,55504438032298100205698,02/02/2018,GLOUCESTER CC
Gloucester City Council,23UE,Homelessness,HS002,B&B Payments,1303,02/02/2018,01/02/2018,TRAVELODGE GB0000,THAME,,OX9 3AT,REDACTED,556*********6959,3615,TRAVELODGE,181,Pound Sterling (826),1.000000000,181,Debit,55504438032298100290492,02/02/2018,GLOUCESTER CC
Gloucester City Council,23UE,Members Support,DS002,Public Transport - Staff,2402,03/01/2018,02/01/2018,Trainline,London,GBR,1445,REDACTED,556*********3822,4112,PASSENGER RAILWAYS,20.55,Pound Sterling (826),1.000000000,20.55,Debit,85130088002800181269861,02/02/2018,GLOUCESTER CC
Gloucester City Council,23UE,Managing Director & Directors,MT001,Books & Publications,3401,16/01/2018,15/01/2018,MARKS&SPENCER PLC,GLOUCESTER,GBR,GL1 1PH,REDACTED,556*********3822,5411,"GROCERY STORES, SUPERMARKETS",5.6,Pound Sterling (826),1.000000000,5.6,Debit,45377758016080241275590,02/02/2018,GLOUCESTER CC
Gloucester City Council,23UE,Procurement ,PR002,Public Transport - Staff,2402,22/01/2018,19/01/2018,Trainline,London,GBR,1445,REDACTED,556*********3822,4112,PASSENGER RAILWAYS,43.5,Pound Sterling (826),1.000000000,43.5,Debit,85130088019802809108498,02/02/2018,GLOUCESTER CC
Gloucester City Council,23UE,Head of Communities,PP001,Mileage and Travel Allowances,2401,30/01/2018,29/01/2018,Trainline,London,GBR,1445,REDACTED,556*********3822,4112,PASSENGER RAILWAYS,42.75,Pound Sterling (826),1.000000000,42.75,debit,85130088029804171681951,02/02/2018,GLOUCESTER CC
Gloucester City Council,23UE,Contact Centre,CT001,Public Transport - Staff,2402,30/01/2018,29/01/2018,Trainline,London,GBR,1445,REDACTED,556*********3822,4112,PASSENGER RAILWAYS,118.55,Pound Sterling (826),1.000000000,118.55,Debit,85130088029804171681951,02/02/2018,GLOUCESTER CC
Gloucester City Council,23UE,Gloucester Guildhall,GH001,General Supplies/Materials,3025,03/01/2018,02/01/2018,PAYPAL *DTSONLINE,35314369001,GBR,PL40ST,REDACTED,556*********8256,5732,ELECTRONIC SALES,22.55,Pound Sterling (826),1.000000000,22.55,Debit,85130088002800175078542,02/02/2018,GLOUCESTER CC
Gloucester City Council,23UE,Gloucester Guildhall,GH001,General Supplies/Materials,3025,03/01/2018,02/01/2018,WWW.INSTANTPRINT.C,01709 382202,,S63 5DR,REDACTED,556*********8256,7338,QUICK-COPY AND REPRODUCTION SERVICES,26.99,Pound Sterling (826),1.000000000,26.99,Debit,85481478003009668823466,02/02/2018,GLOUCESTER CC
Gloucester City Council,23UE,Gloucester Guildhall,GH001,General Supplies/Materials,3025,04/01/2018,02/01/2018,PAYPAL *EASYFOAM,35314369001,GBR,WV147LH,REDACTED,556*********8256,5714,"WINDOW COVERING, UPHOLSTERY AND DRAPERY STORES",41.94,Pound Sterling (826),1.000000000,41.94,Debit,85130088003800181825331,02/02/2018,GLOUCESTER CC
Gloucester City Council,23UE,Guildhall Cinema,GH003,Advertising & Publicity,3404,04/01/2018,02/01/2018,PAYPAL *SHOWCOMMS,35314369001,GBR,BR53FT,REDACTED,556*********8256,5732,ELECTRONIC SALES,21.82,Pound Sterling (826),1.000000000,21.82,Debit,85130088003800181929927,02/02/2018,GLOUCESTER CC
Gloucester City Council,23UE,Gloucester Guildhall,GH001,Professional Membership & Subscriptions,3403,04/01/2018,03/01/2018,DEAN CLOSE,01242258086,,GL51 6HE,REDACTED,556*********8256,8211,ELEMENTARY AND SECONDARY SCHOOLS,120,Pound Sterling (826),1.000000000,120,Debit,55504438003174125885118,02/02/2018,GLOUCESTER CC
Gloucester City Council,23UE,Gloucester Guildhall,GH001,General Supplies/Materials,3025,08/01/2018,05/01/2018,PAYPAL *GEMTOOLHIRE,35314369001,GBR,TW91EH,REDACTED,556*********8256,7399,BUSINESS SERVICES NOT ELSEWHERE CLASSIFIED,44,Pound Sterling (826),1.000000000,44,Debit,85130088005800281979929,02/02/2018,GLOUCESTER CC
Gloucester City Council,23UE,Gloucester Guildhall,GH001,General Supplies/Materials,3025,08/01/2018,05/01/2018,WESTENDDJ.CO.UK,0208 4527774,,NW27JR,REDACTED,556*********8256,5065,ELECTRICAL PARTS AND EQUIPMENT,19.49,Pound Sterling (826),1.000000000,19.49,Debit,85481478006010358341295,02/02/2018,GLOUCESTER CC
Gloucester City Council,23UE,Gloucester Guildhall,GH001,General Supplies/Materials,3025,09/01/2018,08/01/2018,STUDIO SPARES,0208 2089930,,NW27JR,REDACTED,556*********8256,5732,ELECTRONIC SALES,13.09,Pound Sterling (826),1.000000000,13.09,Debit,85481478009011015089514,02/02/2018,GLOUCESTER CC
Gloucester City Council,23UE,Gloucester Guildhall,GH001,General Supplies/Materials,3025,10/01/2018,09/01/2018,XTA ELECTRONICS LTD,STOURPORT-O-S,GBR,DY13 9BZ,REDACTED,556*********8256,5065,ELECTRICAL PARTS AND EQUIPMENT,27.6,Pound Sterling (826),1.000000000,27.6,Debit,05272468010910001148425,02/02/2018,GLOUCESTER CC
Gloucester City Council,23UE,Guildhall Events,GH002,Professional Advice/Consultants fees,3952,12/01/2018,11/01/2018,MIPERMIT,INTERNET,GBR,SN15 5FD,REDACTED,556*********8256,7523,AUTOMOBILE PARKING LOTS AND GARAGES,10,Pound Sterling (826),1.000000000,10,Debit,25425158012060095946638,02/02/2018,GLOUCESTER CC
Gloucester City Council,23UE,Gloucester Guildhall,GH001,General Supplies/Materials,3025,16/01/2018,15/01/2018,PAYPAL *CHENZHIKAI,35314369001,GBR,TW91EH,REDACTED,556*********8256,5331,VARIETY STORES,2.89,Pound Sterling (826),1.000000000,2.89,Debit,85130088015802638481284,02/02/2018,GLOUCESTER CC
Gloucester City Council,23UE,Gloucester Guildhall,GH001,General Supplies/Materials,3025,17/01/2018,16/01/2018,PAYPAL *CMEARTISTSE,35314369001,GBR,TW91EH,REDACTED,556*********8256,7929,"BANDS, ORCHESTRAS, ENTERTAINERS",233,Pound Sterling (826),1.000000000,233,Debit,85130088016802674758370,02/02/2018,GLOUCESTER CC
Gloucester City Council,23UE,Gloucester Guildhall,GH001,General Supplies/Materials,3025,18/01/2018,15/01/2018,CPC,Leeds,GBR,LS12 2NE,REDACTED,556*********8256,5065,ELECTRICAL PARTS AND EQUIPMENT,6.6,Pound Sterling (826),1.000000000,6.6,Debit,85130088017802720551182,02/02/2018,GLOUCESTER CC
Gloucester City Council,23UE,Gloucester Guildhall,GH001,General Supplies/Materials,3025,18/01/2018,17/01/2018,B & Q 1179,GLOUCESTER,,GL12SG,REDACTED,556*********8256,5211,LUMBER AND BUILDING MATERIALS STORES,14.24,Pound Sterling (826),1.000000000,14.24,Debit,85481478018012957626783,02/02/2018,GLOUCESTER CC
Gloucester City Council,23UE,Gloucester Guildhall,GH001,General Supplies/Materials,3025,19/01/2018,18/01/2018,Amazon UK Marketplace,800-279-6620,LUX,L2338,REDACTED,556*********8256,5942,BOOK STORES,14.74,Pound Sterling (826),1.000000000,14.74,Debit,55204728018200292893138,02/02/2018,GLOUCESTER CC
Gloucester City Council,23UE,Guildhall Cinema,GH003,Professional Advice/Consultants fees,3952,29/01/2018,26/01/2018,POSTOFFICE SELFSERVICE,GLOUCESTER,,GL1 1AD,REDACTED,556*********8256,9402,POSTAGE STAMPS,2.08,Pound Sterling (826),1.000000000,2.08,Debit,55504438026252162050516,02/02/2018,GLOUCESTER CC
Gloucester City Council,23UE,Guildhall Cinema,GH003,Professional Advice/Consultants fees,3952,30/01/2018,29/01/2018,POST OFFICE COUNTER,GLOUCESTER,,GL1 1AD,REDACTED,556*********8256,9402,POSTAGE STAMPS,9.35,Pound Sterling (826),1.000000000,9.35,Debit,55504438029194298262432,02/02/2018,GLOUCESTER CC
Gloucester City Council,23UE,Guildhall Events,GH002,Advertising & Publicity,3404,01/02/2018,31/01/2018,FACEBK R3YMTE2LR2,fb.me/ads,IRL,2,REDACTED,556*********8256,7311,ADVERTISING SERVICES,15.56,Pound Sterling (826),1.000000000,15.56,Debit,15265678031000054183730,02/02/2018,GLOUCESTER CC
Gloucester City Council,23UE,Guildhall Events,GH002,Advertising & Publicity,3404,01/02/2018,31/01/2018,FACEBK 24CTCFA6M2,fb.me/ads,IRL,2,REDACTED,556*********8256,7311,ADVERTISING SERVICES,310.72,Pound Sterling (826),1.000000000,310.72,Debit,15265678031000343053520,02/02/2018,GLOUCESTER CC
Gloucester City Council,23UE,Gloucester Guildhall,GH001,Mileage and Travel Allowances,2401,02/02/2018,01/02/2018,Trainline,London,GBR,1445,REDACTED,556*********8256,4112,PASSENGER RAILWAYS,42.8,Pound Sterling (826),1.000000000,42.8,Debit,85130088032804293112518,02/02/2018,GLOUCESTER CC
Gloucester City Council,23UE,Financial Services,FS004,External Training Course Fees,0550,03/01/2018,02/01/2018,NCS*CIMA VUE EXAM,800-511-3478,GBR,WC2R 0RL,REDACTED,556*********3063,8299,SCHOOLS AND EDUCATIONAL SERVICES NOT ELSEWHERE CLASSIFIED,95,Pound Sterling (826),1.000000000,95,Debit,55204728002200566232987,02/02/2018,GLOUCESTER CC
Gloucester City Council,23UE,Financial Services,FS004,Public Transport - Staff,2402,05/01/2018,04/01/2018,Virgin Trains,London,GBR,1445,REDACTED,556*********3063,4112,PASSENGER RAILWAYS,160,Pound Sterling (826),1.000000000,160,Debit,85130088004800256767029,02/02/2018,GLOUCESTER CC
Gloucester City Council,23UE,Off Street Car Parks,PA001,Building Repairs and Maintenance,1001,11/01/2018,10/01/2018,H.C.SLINGSBY PLC,BRADFORD,GBR,BD17 7LW,REDACTED,556*********3063,5085,INDUSTRIAL SUPPLIES NOT ELSEWHERE CLASSI,103.08,Pound Sterling (826),1.000000000,103.08,Debit,35425158011050157574840,02/02/2018,GLOUCESTER CC
Gloucester City Council,23UE,Pollution Control,PH002,External Training Course Fees,0550,11/01/2018,10/01/2018,UNI OF WEST ENGLAN,0117 3282907,,BS161QY,REDACTED,556*********3063,8220,"COLLEGES, UNIVERSITIES, PROFESSIONAL SCHOOLS AND JUNIOR COLLEGES",200,Pound Sterling (826),1.000000000,200,Debit,85481478011011424904564,02/02/2018,GLOUCESTER CC
Gloucester City Council,23UE,Financial Services,FS004,Professional Advice/Consultants fees,3952,12/01/2018,11/01/2018,WWW.CIPFA.ORG.UK/PFMCO,LONDON WC2N,,E1 8AN,REDACTED,556*********3063,8699,MEMBERSHIP ORGANIZATIONS NOT ELSEWHERE CLASSIFIED,1128,Pound Sterling (826),1.000000000,1128,Debit,55541968012338000020246,02/02/2018,GLOUCESTER CC
Gloucester City Council,23UE,Pollution Control,PH002,External Training Course Fees,0550,02/02/2018,01/02/2018,UNI OF WEST ENGLAN,0117 3282907,,BS161QY,REDACTED,556*********3063,8220,"COLLEGES, UNIVERSITIES, PROFESSIONAL SCHOOLS AND JUNIOR COLLEGES",400,Pound Sterling (826),1.000000000,400,Debit,85481478033016346838455,02/02/2018,GLOUCESTER CC
Gloucester City Council,23UE,Civica Admin Charges,BI002,Professional Advice/Consultants fees,3952,02/02/2018,01/02/2018,HMCOURTS-SERVICE.G,01452420100,,GL12ZG,REDACTED,556*********3063,9222,FINES,1476,Pound Sterling (826),1.000000000,1476,Debit,85481478033016355186341,02/02/2018,GLOUCESTER CC
